bitfinex-derivatives/quotes_SOLF0:USTF0_20240820
["timestamp","ask_amount","ask_price","bid_price","bid_amount"]
[1724132375526,26.05,147.21,147.16,1.24685897]
[1724132375832,26.05,147.17,147.08,3.9154]
[1724132376024,26.05,147.17,147.09,1.24713685]
[1724132376628,26.09911344,147.14,147.12,0.04395122]
[1724132376831,26.05,147.14,147.08,3.39763415]
[1724132377027,26.09338748,147.14,147.12,0.04359165]
[1724132377227,0.04338748,147.14,147.12,0.04705962]
[1724132378230,0.04338748,147.14,147.12,3.44345962]
[1724132378726,0.04338748,147.14,147.12,0.04705962]
[1724132379327,0.04338748,147.14,147.13,3.3962]
[1724132380327,0.04338748,147.14,147.12,3.44345962]
[1724132380732,32.61,147.2,147.12,0.04705962]
[1724132380937,32.61,147.2,147.11,1.24729217]
[1724132381347,32.61,147.2,147.14,3.3958]
[1724132381639,3.3944,147.21,147.15,2.6192]
[1724132381828,36.0042,147.22,147.15,6.0148]
[1724132382036,0.04497719,147.2,147.17,0.05112108]
[1724132382337,0.04354458,147.2,147.17,0.04402041]
[1724132382734,0.04354458,147.2,147.17,3.43912041]
[1724132383337,0.04354458,147.2,147.17,0.04402041]
[1724132386139,0.04354458,147.2,147.17,3.43922041]
[1724132386446,0.04354458,147.2,147.17,0.04402041]
[1724132386747,0.04354458,147.2,147.18,3.3951]
[1724132388251,0.04354458,147.2,147.17,0.04402041]
[1724132388452,32.65354458,147.2,147.17,0.04402041]
[1724132390857,0.04354458,147.2,147.17,0.04402041]
[1724132391155,0.04354458,147.2,147.17,3.43932041]
[1724132391549,0.04354458,147.2,147.18,3.395]
[1724132391752,0.04354458,147.2,147.17,0.04402041]
[1724132391952,0.04354458,147.2,147.18,3.3951]
[1724132392460,0.04354458,147.2,147.19,3.3949]
[1724132392754,0.04354458,147.2,147.17,0.04402041]
[1724132393259,32.61,147.24,147.17,0.04402041]
[1724132393859,32.61,147.24,147.18,3.31889032]
[1724132394353,0.04868554,147.22,147.19,3.3949]
[1724132394956,0.04868554,147.22,147.18,3.31889032]
[1724132395160,0.04868554,147.22,147.17,0.04402041]
[1724132395555,0.04868554,147.22,147.21,3.3944]
[1724132396861,39.31618571,147.26,147.21,3.3944]
[1724132397164,39.31618571,147.26,147.22,3.3941]
[1724132397753,39.31618571,147.26,147.21,3.3943]
[1724132397955,0.04669626,147.25,147.21,3.3943]
[1724132398157,3.44019626,147.25,147.21,3.3943]
[1724132398575,29.50019626,147.25,147.21,3.3943]
[1724132398763,29.50019626,147.25,147.22,3.3942]
[1724132399164,26.10669626,147.25,147.22,3.3942]
[1724132399466,26.10669626,147.25,147.2,0.0455826]
[1724132400052,0.04669626,147.25,147.24,3.3937]
[1724132400454,0.04669626,147.25,147.23,0.0490807]
[1724132401361,0.04669626,147.25,147.23,3.4428807]
[1724132402462,3.41477806,147.25,147.24,3.3937]
[1724132402664,0.04669626,147.25,147.24,3.3937]
[1724132403168,3.41918787,147.25,147.24,3.3937]
[1724132403465,0.04669626,147.25,147.24,3.3937]
[1724132403669,3.49110179,147.25,147.24,3.3937]
[1724132403859,0.04669626,147.25,147.24,3.3937]
[1724132404766,0.04669626,147.25,147.23,0.0490807]
[1724132405265,26.10669626,147.25,147.23,0.0490807]
[1724132406169,26.10669626,147.25,147.23,3.4429807]
[1724132406963,26.10669626,147.25,147.23,0.0490807]
[1724132407770,29.50029626,147.25,147.23,0.0490807]
[1724132408864,26.10669626,147.25,147.23,0.0490807]
[1724132409471,29.50039626,147.25,147.23,0.0490807]
[1724132411272,3.3937,147.24,147.23,0.0490807]
[1724132411567,26.06,147.24,147.1,26.06]
[1724132411773,26.06,147.19,147.15,1.2829]
[1724132412170,3.41931854,147.18,147.15,1.2829]
[1724132412373,3.41931854,147.18,147.15,1.33348417]
[1724132412565,3.46456881,147.18,147.16,3.3954]
[1724132412767,0.04525027,147.18,147.15,1.33348417]
[1724132413769,0.04525027,147.18,147.17,3.3953]
[1724132415376,0.04525027,147.18,147.16,3.3954]
[1724132415969,0.04525027,147.18,147.17,3.3953]
[1724132417675,0.04525027,147.18,147.16,3.3955]
[1724132418180,26.10525027,147.18,147.15,0.05058417]
[1724132418381,29.50045027,147.18,147.15,3.44628417]
[1724132418580,0.04525027,147.18,147.15,0.05058417]
[1724132418883,3.396,147.14,147.11,3.3966]
[1724132419178,26.06,147.13,147.11,3.3966]
[1724132419372,3.35396006,147.12,147.11,3.3966]
[1724132419979,26.10879174,147.13,147.11,3.3966]
[1724132421276,0.04879174,147.13,147.11,3.3966]
[1724132421682,0.04879174,147.13,147.12,3.3965]
[1724132422473,26.06,147.18,147.1,1.68520082]
[1724132422777,3.3955,147.17,147.1,1.6421]
[1724132422975,3.3955,147.17,147.13,3.396]
[1724132423177,3.3955,147.17,147.11,1.7458]
[1724132423980,0.05082408,147.15,147.13,0.0516274]
[1724132424372,0.05082408,147.15,147.14,3.396]
[1724132424881,3.3948,147.2,147.16,3.3954]
[1724132424882,3.43430875,147.19,147.16,3.3954]
[1724132425089,3.43430875,147.19,147.16,3.44001586]
[1724132425270,0.0495847,147.19,147.16,3.44001586]
[1724132425876,0.0495847,147.19,147.16,0.04461586]
[1724132426278,0.0495847,147.19,147.17,3.3951]
[1724132426977,0.0495847,147.19,147.18,3.3951]
[1724132430383,26.06,147.23,147.17,1.6248]
[1724132430987,26.06,147.23,147.21,3.3942]
[1724132431581,26.06,147.23,147.22,3.3942]
[1724132431783,0.04486083,147.23,147.22,3.3942]
[1724132431983,0.04486083,147.23,147.21,0.04819849]
[1724132431984,26.10486083,147.23,147.21,0.04819849]
[1724132432990,26.10486083,147.23,147.21,3.44239849]
[1724132433492,26.10486083,147.23,147.22,3.3942]
[1724132433888,26.10486083,147.23,147.21,0.04819849]
[1724132434285,26.06,147.2,147.11,3.41122552]
[1724132434500,26.06,147.2,147.12,1.7752]
[1724132434685,26.06,147.2,147.17,3.3951]
[1724132435379,26.06,147.2,147.17,3.44329911]
[1724132435380,26.10465012,147.2,147.17,3.44329911]
[1724132437193,26.10465012,147.2,147.17,0.04819911]
[1724132437486,0.04465012,147.2,147.17,0.04819911]
[1724132438986,0.04465012,147.2,147.18,3.3949]
[1724132441188,26.10465012,147.2,147.18,3.3949]
[1724132442696,26.10465012,147.2,147.17,0.04819911]
[1724132443283,3.395,147.19,147.17,0.04819911]
[1724132444587,29.49935012,147.2,147.17,3.44349911]
[1724132446292,26.10465012,147.2,147.19,3.3948]
[1724132446489,0.04465012,147.2,147.19,3.3948]
[1724132448097,26.10465012,147.2,147.17,0.04819911]
[1724132448894,29.49925012,147.2,147.17,0.04819911]
[1724132449493,29.49925012,147.2,147.17,3.44329911]
[1724132450596,0.04465012,147.2,147.18,3.395]
[1724132453604,29.455,147.19,147.17,0.04819911]
[1724132454203,26.06,147.19,147.17,0.04819911]
[1724132455199,26.06,147.19,147.17,3.44349911]
[1724132455799,29.4549,147.19,147.17,0.04819911]
[1724132456504,26.06,147.18,147.12,1.7752]
[1724132456695,0.04465012,147.2,147.12,1.7752]
[1724132456696,26.06,147.15,147.12,1.7752]
[1724132457100,26.06,147.15,147.13,3.396]
[1724132457490,26.06,147.15,147.12,1.7752]
[1724132457693,26.10948443,147.15,147.13,0.0477455]
[1724132458206,26.10948443,147.15,147.14,3.396]
[1724132458705,0.04948443,147.15,147.14,3.396]
[1724132461009,3.3951,147.18,147.13,0.0477455]
[1724132461210,26.06,147.18,147.13,0.0477455]
[1724132461606,29.4552,147.18,147.13,0.0477455]
[1724132461908,26.06,147.18,147.13,0.0477455]
[1724132462214,0.04778882,147.17,147.13,0.0477455]
[1724132462607,0.04778882,147.17,147.14,3.3959]
[1724132463504,0.04778882,147.17,147.15,3.3957]
[1724132464713,3.44308882,147.17,147.15,3.3957]
[1724132466313,0.04778882,147.17,147.15,3.3957]
[1724132467417,0.04778882,147.17,147.16,3.3955]
[1724132467708,0.04778882,147.17,147.13,0.0477455]
[1724132468806,0.04778882,147.17,147.16,3.3955]
[1724132470005,0.04778882,147.17,147.15,3.3957]
[1724132470213,3.39593703,147.16,147.15,3.3957]
[1724132470412,0.04778882,147.17,147.15,3.3957]
[1724132471009,3.41222734,147.16,147.15,3.3957]
[1724132474916,0.04778882,147.17,147.16,3.3955]
[1724132475210,3.40095843,147.17,147.16,3.3955]
[1724132475415,0.04778882,147.17,147.16,3.3955]
[1724132476011,3.40333439,147.17,147.16,3.3955]
[1724132477314,0.04778882,147.17,147.16,3.3955]
[1724132477710,3.47467511,147.22,147.15,3.46890548]
[1724132477916,26.06,147.23,147.15,1.7656]
[1724132478113,29.4566154,147.23,147.16,1.24699585]
[1724132478306,29.4566154,147.23,147.2,3.3943]
[1724132478617,26.06,147.23,147.15,1.7656]
[1724132478820,29.49148207,147.23,147.2,0.04578167]
[1724132479120,32.88548207,147.23,147.2,0.04578167]
[1724132479413,29.49769081,147.23,147.2,0.04578167]
[1724132479617,32.8844639,147.23,147.2,0.04578167]
[1724132479812,26.10369081,147.23,147.2,0.04578167]
[1724132480010,0.04369081,147.23,147.2,0.04578167]
[1724132480811,0.04369081,147.23,147.22,3.394]
[1724132481211,0.04369081,147.23,147.2,0.04578167]
[1724132482607,0.04369081,147.23,147.21,3.3941]
[1724132484012,0.04369081,147.23,147.22,3.394]
[1724132486419,26.04,147.31,147.21,31.10605607]
[1724132486812,3.3924,147.29,147.21,31.10605607]
[1724132487121,29.35731047,147.31,147.21,31.10605607]
[1724132487321,0.05174781,147.27,147.26,3.3929]
[1724132487713,3.3922,147.3,147.26,3.3929]
[1724132487922,0.04816508,147.28,147.26,3.3929]
[1724132488318,0.04816508,147.28,147.27,3.3929]
[1724132490816,29.4317,147.33,147.25,3.44958338]
[1724132491119,29.4317,147.33,147.26,1.7335]
[1724132491323,3.36943287,147.32,147.26,1.7335]
[1724132491617,6.76123287,147.32,147.29,3.3923]
[1724132492016,3.42126534,147.32,147.29,0.04692936]
[1724132492218,3.3921,147.31,147.29,0.04692936]
[1724132492615,3.392,147.31,147.29,0.04692936]
[1724132493421,3.392,147.31,147.29,3.43932936]
[1724132494417,6.85104607,147.32,147.29,3.43932936]
[1724132494626,0.05183247,147.32,147.3,3.3921]
[1724132495017,0.05183247,147.32,147.31,3.392]
[1724132496033,0.05183247,147.32,147.3,3.3921]
[1724132496629,0.05183247,147.32,147.29,0.04692936]
[1724132497936,0.05183247,147.32,147.31,3.392]
[1724132499138,0.05183247,147.32,147.3,3.392]
[1724132500233,0.05183247,147.32,147.29,3.43932936]
[1724132500428,0.05183247,147.32,147.22,60.62467203]
[1724132500638,26.04,147.28,147.21,1.763]
[1724132500836,29.47825609,147.28,147.21,5.09885438]
[1724132501140,3.3931,147.27,147.22,3.3939]
[1724132501342,0.881,147.33,147.21,1.763]
[1724132501637,0.04724052,147.28,147.26,0.04496117]
[1724132501839,3.43694788,147.28,147.26,0.04496117]
[1724132503138,3.3929,147.27,147.26,0.04496117]
[1724132504642,26.08414788,147.28,147.26,0.04496117]
[1724132505245,3.3929,147.27,147.26,0.04496117]
[1724132506040,29.47684788,147.28,147.26,0.04496117]
[1724132507546,29.47684788,147.28,147.21,1.763]
[1724132507547,3.3929,147.27,147.22,3.394]
[1724132507844,26.04,147.25,147.16,26.04]
[1724132508053,3.3939,147.23,147.19,3.3945]
[1724132508543,26.04,147.25,147.21,3.3942]
[1724132508739,0.04835029,147.22,147.21,3.3942]
[1724132509549,0.04835029,147.22,147.2,3.44294173]
[1724132509951,0.04835029,147.22,147.2,0.04854173]
[1724132510152,0.04835029,147.22,147.21,3.3943]
[1724132512545,0.04835029,147.22,147.2,0.04854173]
[1724132513146,0.04835029,147.22,147.21,3.3943]
[1724132513353,0.04835029,147.22,147.2,0.04854173]
[1724132514438,3.44245029,147.22,147.2,0.04854173]
[1724132514844,0.04835029,147.22,147.2,0.04854173]
[1724132515042,0.04835029,147.22,147.07,3.36976223]
[1724132515043,29.465196,147.21,147.07,3.36976223]
[1724132515246,26.04,147.21,147.1,26.04]
[1724132515441,26.04,147.18,147.11,1.24710898]
[1724132515846,26.04,147.18,147.14,3.3958]
[1724132516248,3.3947,147.19,147.14,3.3958]
[1724132516451,0.04355645,147.17,147.15,3.44508217]
[1724132516654,26.04,147.24,147.16,1.24702702]
[1724132516955,26.04,147.24,147.16,2.6972]
[1724132517446,3.3942,147.22,147.16,2.6972]
[1724132517651,0.04910723,147.2,147.18,0.05062579]
[1724132517846,3.44087372,147.2,147.18,0.0503617]
[1724132518049,3.4440615,147.2,147.18,0.0503617]
[1724132519751,0.0493615,147.2,147.18,0.0503617]
[1724132520657,3.4438615,147.2,147.18,0.0503617]
[1724132520852,0.0493615,147.2,147.18,0.0503617]
[1724132521055,3.4440615,147.2,147.18,0.0503617]
[1724132521757,0.0493615,147.2,147.18,0.0503617]
[1724132523757,0.0493615,147.2,147.18,3.4450617]
[1724132523956,0.0493615,147.2,147.18,0.0503617]
[1724132524361,0.0493615,147.2,147.19,3.3947]
[1724132524958,0.0493615,147.2,147.18,3.4452617]
[1724132525358,0.0493615,147.2,147.18,0.0503617]
[1724132527264,0.0493615,147.2,147.18,3.4452617]
[1724132527761,0.0493615,147.2,147.18,0.0503617]
[1724132528463,0.0493615,147.2,147.19,3.3947]
[1724132529460,0.0493615,147.2,147.18,3.4452617]
[1724132529964,0.0493615,147.2,147.18,0.0503617]
[1724132530469,3.4438615,147.2,147.18,0.0503617]
[1724132530664,26.0893615,147.2,147.18,0.0503617]
[1724132531558,3.3947,147.19,147.18,0.0503617]
[1724132536368,26.0893615,147.2,147.18,0.0503617]
[1724132536870,0.0493615,147.2,147.18,0.0503617]
[1724132537169,26.0893615,147.2,147.18,0.0503617]
[1724132538461,29.54297569,147.2,147.18,0.0503617]
[1724132538865,29.54297569,147.2,147.18,3.4452617]
[1724132540966,29.54297569,147.2,147.19,3.3947]
[1724132541466,26.04,147.22,147.19,3.3947]
[1724132542367,29.4825423,147.22,147.19,3.44465538]
[1724132543567,3.3945,147.21,147.19,0.04995538]
[1724132544660,26.04,147.2,147.19,0.04995538]
[1724132545269,29.4345,147.2,147.19,0.04995538]
[1724132546477,13.8245,147.2,147.19,0.04995538]
[1724132551076,10.43,147.21,147.19,0.04995538]
[1724132551377,10.43,147.21,147.19,3.44465538]
[1724132551578,13.89741625,147.21,147.19,3.44465538]
[1724132551870,6.7829,147.34,147.19,10.47995538]
[1724132552071,10.43,147.25,147.19,10.43]
[1724132552281,13.8234,147.25,147.19,10.43]
[1724132553073,0.04359915,147.23,147.22,3.3939]
[1724132555186,0.04359915,147.23,147.21,0.04679039]
[1724132555778,0.04359915,147.23,147.22,3.394]
[1724132558581,3.393,147.27,147.24,3.3935]
[1724132559084,13.83280341,147.28,147.23,3.3937]
[1724132559085,3.3931,147.26,147.23,3.3937]
[1724132559284,13.83280341,147.28,147.21,5.2145]
[1724132560187,0.04727077,147.26,147.23,0.05161115]
[1724132560789,0.04727077,147.26,147.25,3.3933]
[1724132561684,68.86,147.35,147.28,3.3926]
[1724132561885,10.43,147.32,147.26,10.43]
[1724132562189,13.8217,147.32,147.26,10.43]
[1724132562394,10.43,147.32,147.26,10.43]
[1724132562887,0.04410658,147.3,147.28,0.05071782]
[1724132563188,0.04410658,147.3,147.29,3.3924]
[1724132571398,10.43,147.35,147.32,3.3916]
[1724132571900,10.43,147.35,147.29,10.43]
[1724132572101,10.43,147.36,147.29,10.43]
[1724132572303,0.04584152,147.34,147.31,0.04626627]
[1724132572510,0.04584152,147.34,147.32,3.3916]
[1724132572703,0.04584152,147.34,147.31,0.04626627]
[1724132573504,3.43789531,147.38,147.32,10.43]
[1724132573708,10.43,147.39,147.33,10.43]
[1724132574001,10.43,147.41,147.34,10.43]
[1724132574207,13.8198,147.41,147.36,3.3908]
[1724132574796,3.39,147.4,147.36,3.3908]
[1724132574999,10.43,147.39,147.37,0.05001658]
[1724132575201,13.8204,147.38,147.37,0.05001658]
[1724132575600,10.43,147.38,147.37,0.05001658]
[1724132576396,13.8202,147.39,147.37,0.05001658]
[1724132577009,17.19164129,147.39,147.37,0.05001658]
[1724132577502,13.80144129,147.39,147.37,0.05001658]
[1724132578005,17.19154129,147.39,147.37,0.05001658]
[1724132579605,13.80144129,147.39,147.37,3.44051658]
[1724132579816,13.80144129,147.39,147.37,0.05001658]
[1724132581309,3.3904,147.38,147.37,0.05001658]
[1724132581606,13.80144129,147.39,147.37,0.05001658]
[1724132582014,17.19164129,147.39,147.37,0.05001658]
[1724132582815,13.8202,147.39,147.37,0.05001658]
[1724132583407,17.27467497,147.39,147.37,0.05001658]
[1724132584315,3.3904,147.38,147.37,0.05001658]
[1724132584712,13.88447497,147.39,147.29,3.40635023]
[1724132584713,13.88447497,147.39,147.29,13.83635023]
[1724132584912,10.43,147.34,147.29,2.6364]
[1724132585316,17.24900134,147.34,147.3,3.392]
[1724132585821,0.05203554,147.33,147.31,0.05020064]
[1724132586624,0.05203554,147.33,147.31,3.44200064]
[1724132587621,0.05203554,147.33,147.32,3.3917]
[1724132588124,0.05203554,147.33,147.31,3.44210064]
[1724132588324,0.05203554,147.33,147.31,0.05020064]
[1724132589020,0.05203554,147.33,147.31,3.44200064]
[1724132589216,0.05203554,147.33,147.31,0.05020064]
[1724132589914,0.05203554,147.33,147.32,3.3917]
[1724132590424,10.43,147.4,147.35,3.391]
[1724132590718,10.43,147.4,147.33,10.43]
[1724132590719,13.86361507,147.4,147.33,10.43]
[1724132590921,3.3903,147.39,147.35,3.3908]
[1724132591522,0.04465416,147.38,147.36,0.04951118]
[1724132591719,0.04465416,147.38,147.36,3.44031118]
[1724132594522,10.43,147.42,147.36,0.04951118]
[1724132595828,0.04587621,147.4,147.38,3.3903]
[1724132596025,0.04587621,147.4,147.36,0.04951118]
[1724132596630,0.04587621,147.4,147.38,3.3902]
[1724132598836,3.48023348,147.4,147.38,3.3902]
[1724132599335,0.04587621,147.4,147.38,3.3902]
[1724132599532,3.45098059,147.4,147.36,0.04951118]
[1724132599726,10.43,147.39,147.36,0.04951118]
[1724132600228,0.04587621,147.4,147.36,0.04951118]
[1724132600435,3.45165842,147.4,147.36,0.04951118]
[1724132600627,6.84165842,147.4,147.36,0.04951118]
[1724132600828,0.04587621,147.4,147.36,0.04951118]
[1724132601328,10.43,147.39,147.36,0.04951118]
[1724132601743,10.43,147.39,147.36,3.44031118]
[1724132601744,13.8202,147.39,147.36,3.44031118]
[1724132606231,3.3906,147.37,147.36,0.04951118]
[1724132607138,3.3905,147.38,147.36,0.04951118]
[1724132614940,3.3905,147.38,147.36,3.44031118]
[1724132615239,0.04587621,147.4,147.36,0.04951118]
[1724132615441,0.04587621,147.4,147.36,10.47951118]
[1724132615630,0.04587621,147.4,147.37,10.43]
[1724132616438,0.04587621,147.4,147.39,3.3901]
[1724132619436,0.04587621,147.4,147.38,3.3903]
[1724132619638,0.04587621,147.4,147.36,15.65251118]
[1724132620748,0.04587621,147.4,147.39,3.3901]
[1724132621843,0.04587621,147.4,147.38,3.3903]
[1724132623238,0.04587621,147.4,147.36,5.22251118]
[1724132623239,0.04587621,147.4,147.39,3.3901]
[1724132630247,3.3893,147.43,147.4,3.3897]
[1724132630754,3.3894,147.42,147.36,18.3546]
[1724132630949,3.3894,147.42,147.38,3.3902]
[1724132631151,3.3894,147.42,147.36,18.3546]
[1724132631346,0.0515142,147.4,147.38,0.04418224]
[1724132631549,0.04330141,147.4,147.38,0.04669608]
[1724132631948,3.43330141,147.4,147.38,0.04669608]
[1724132632253,3.50172019,147.4,147.38,3.43699608]
[1724132633456,0.04330141,147.4,147.38,3.43699608]
[1724132636057,3.43320141,147.4,147.38,3.43699608]
[1724132636551,0.04330141,147.4,147.39,3.3901]
[1724132641961,3.3892,147.43,147.4,3.3897]
[1724132642857,2.7034,147.51,147.41,10.43]
[1724132643053,10.43,147.48,147.41,10.43]
[1724132643258,3.3887,147.46,147.43,3.3892]
[1724132643458,6.83400123,147.46,147.43,3.3892]
[1724132643659,6.83400123,147.46,147.36,7.9246]
[1724132643660,3.44530123,147.46,147.4,10.43]
[1724132643852,0.03004072,147.44,147.42,0.04471893]
[1724132644051,0.03004072,147.44,147.42,3.43401893]
[1724132645860,0.03004072,147.44,147.43,3.3892]
[1724132650666,2.7034,147.51,147.45,3.3886]
[1724132650867,10.43,147.49,147.43,10.43]
[1724132651168,47.45,147.57,147.43,10.43]
[1724132651370,10.43,147.5,147.43,10.43]
[1724132651569,3.30919972,147.49,147.43,10.43]
[1724132651761,3.30919972,147.49,147.45,0.0483096]
[1724132651963,3.3881,147.48,147.45,3.4369096]
[1724132652361,3.30919972,147.49,147.45,0.0483096]
[1724132652566,6.69719972,147.49,147.46,3.3885]
[1724132653763,3.3881,147.48,147.46,3.3885]
[1724132654166,13.8181,147.48,147.46,3.3885]
[1724132655069,10.43,147.47,147.45,0.0483096]
[1724132655664,13.8184,147.47,147.45,0.0483096]
[1724132660670,10.43,147.46,147.36,7.9246]
[1724132660873,10.43,147.44,147.37,11.67502267]
[1724132661081,10.43,147.42,147.36,7.9246]
[1724132661269,13.8196,147.42,147.36,7.9246]
[1724132661469,10.43,147.41,147.36,7.9246]
[1724132661671,10.43,147.41,147.37,0.04480539]
[1724132661872,0.0483096,147.4,147.38,3.3902]
[1724132662276,0.0483096,147.4,147.37,0.04480539]
[1724132662471,0.0483096,147.4,147.38,3.3904]
[1724132665080,0.0483096,147.4,147.39,3.3901]
[1724132669171,3.3892,147.43,147.4,3.3899]
[1724132670275,3.3892,147.43,147.4,0.04923299]
[1724132670276,3.3895,147.42,147.4,0.04923299]
[1724132670677,13.8197,147.41,147.4,0.04923299]
[1724132672271,3.39,147.4,147.36,7.9246]
[1724132672471,10.43,147.39,147.36,7.9246]
[1724132672878,13.8203,147.39,147.36,5.173]
[1724132673383,13.86502992,147.39,147.36,3.43892505]
[1724132673775,3.3904,147.38,147.36,0.04822505]
[1724132675282,13.86492992,147.39,147.36,0.04822505]
[1724132675884,3.3904,147.38,147.36,0.04822505]
[1724132676688,13.86492992,147.39,147.36,0.04822505]
[1724132677684,13.86492992,147.39,147.36,3.43902505]
[1724132680586,0.04472992,147.39,147.36,0.04822505]
[1724132681087,10.43,147.38,147.36,0.04822505]
[1724132681682,13.8205,147.38,147.36,0.04822505]
[1724132682078,13.8205,147.38,147.36,3.43902505]
[1724132682280,3.3905,147.38,147.36,0.04822505]
[1724132682585,0.04472992,147.39,147.36,0.04822505]
[1724132682983,0.04472992,147.39,147.37,3.3904]
[1724132683990,3.43492992,147.39,147.37,3.3904]
[1724132684184,10.47472992,147.39,147.36,0.04822505]
[1724132684587,3.3904,147.38,147.36,0.04822505]
[1724132685189,13.86492992,147.39,147.36,3.43902505]
[1724132685586,10.43,147.38,147.36,0.04822505]
[1724132685789,13.8205,147.38,147.36,0.04822505]
[1724132692095,3.3906,147.37,147.36,0.04822505]
[1724132692582,13.8205,147.38,147.36,0.04822505]
[1724132693496,3.3905,147.38,147.36,0.04822505]
[1724132693694,13.8205,147.38,147.36,0.04822505]
[1724132695199,10.43,147.38,147.3,5.1433]
[1724132695501,10.43,147.33,147.3,5.1433]
[1724132695996,10.43,147.33,147.31,3.3918]
[1724132696193,13.75997747,147.33,147.31,3.43697491]
[1724132696399,13.80993537,147.33,147.31,3.43697491]
[1724132696987,10.4799579,147.33,147.31,3.43697491]
[1724132697192,13.8714579,147.33,147.31,0.04517491]
[1724132699492,13.8714579,147.33,147.31,3.43717491]
[1724132699692,10.4799579,147.33,147.31,3.43717491]
[1724132700100,0.0499579,147.33,147.32,3.3917]
[1724132700796,10.43,147.37,147.34,3.3913]
[1724132701101,10.43,147.37,147.31,10.43]
[1724132701401,3.43259346,147.36,147.34,3.3911]
[1724132702196,3.43259346,147.36,147.3,2.5664]
[1724132702500,3.43259346,147.36,147.34,0.0442437]
[1724132702501,3.4800936,147.36,147.34,0.0442437]
[1724132702699,0.04750014,147.36,147.34,3.4353437]
[1724132702903,10.47750014,147.36,147.34,3.4353437]
[1724132703105,13.81245458,147.36,147.34,0.0442437]
[1724132703609,0.04750014,147.36,147.34,0.0442437]
[1724132703895,10.43,147.35,147.34,0.0442437]
[1724132704494,13.81613628,147.35,147.3,2.5664]
[1724132704693,10.43,147.31,147.25,5.3883]
[1724132704900,10.43,147.31,147.26,1.24613433]
[1724132705199,10.43,147.29,147.26,1.24613433]
[1724132705394,10.43,147.29,147.23,27.12]
[1724132705395,10.43,147.27,147.23,27.12]
[1724132705595,10.43,147.24,147.22,3.3939]
[1724132705897,10.43,147.24,147.21,3.34342826]
[1724132705898,0.04984363,147.29,147.26,0.04967661]
[1724132706096,10.43,147.27,147.26,0.04967661]
[1724132706291,3.34468036,147.27,147.2,2.7517]
[1724132706494,0.0519271,147.28,147.25,0.04456268]
[1724132706692,10.4819271,147.28,147.25,3.43776268]
[1724132706994,10.48012478,147.28,147.25,3.44354645]
[1724132707190,3.45050536,147.27,147.25,3.44354645]
[1724132707595,10.48012478,147.28,147.26,3.3931]
[1724132707596,0.05012478,147.28,147.26,3.3931]
[1724132707798,0.05012478,147.28,147.26,10.43]
[1724132708106,0.05012478,147.28,147.26,13.0289]
[1724132708298,0.05012478,147.28,147.27,3.3929]
[1724132708493,26.03,147.34,147.26,2.5989]
[1724132709705,3.43371906,147.31,147.29,0.05170191]
[1724132710104,0.04161906,147.31,147.29,0.05170191]
[1724132711205,26.03,147.3,147.22,5.3056]
[1724132711900,26.03,147.28,147.22,5.3056]
[1724132712101,29.4228,147.28,147.24,3.3934]
[1724132712300,26.07387279,147.26,147.24,0.04567948]
[1724132712501,3.44969762,147.26,147.24,3.4376967]
[1724132712699,3.44969762,147.26,147.24,0.0442967]
[1724132712700,0.05065344,147.26,147.24,0.0442967]
[1724132713299,0.05065344,147.26,147.24,3.4377967]
[1724132713907,3.3933,147.25,147.24,0.0442967]
[1724132717104,3.3938,147.23,147.18,5.4246]
[1724132717304,29.4238,147.23,147.18,5.4246]
[1724132717510,3.3941,147.22,147.18,5.4246]
[1724132718213,0.04612737,147.21,147.19,0.05121924]
[1724132718917,26.07612737,147.21,147.19,3.44591924]
[1724132719420,0.04612737,147.21,147.2,3.3945]
[1724132720812,26.03,147.27,147.19,0.05121924]
[1724132721124,26.03,147.3,147.19,27.32794974]
[1724132721329,3.3927,147.28,147.2,3.9079305]
[1724132721531,3.3927,147.28,147.2,2.6612]
[1724132721829,0.04325259,147.25,147.23,0.05202128]
[1724132722023,0.04325259,147.25,147.24,3.3933]
[1724132722227,0.04325259,147.25,147.23,0.05202128]
[1724132722228,26.07325259,147.25,147.23,0.05202128]
[1724132722631,26.07325259,147.25,147.24,3.3936]
[1724132722824,0.04325259,147.25,147.24,3.3936]
[1724132726229,0.04325259,147.25,147.23,3.44572128]
[1724132726425,0.04325259,147.25,147.23,0.05202128]